bitfinex/quotes_SOLUSD_20260202
["timestamp","ask_amount","ask_price","bid_price","bid_amount"]
[1770033263196,0.28432314,103.23,103.2,4.23888756]
[1770033263394,0.28432314,103.24,103.21,4.23888756]
[1770033263795,4.6600516,103.24,103.21,4.23888756]
[1770033266910,7.99060749,103.25,103.22,4.23888756]
[1770033267087,0.28432314,103.24,103.22,4.23888756]
[1770033268702,7.99060749,103.25,103.22,4.23888756]
[1770033271699,3.61487903,103.25,103.22,4.23888756]
[1770033271912,7.99060749,103.24,103.22,4.23888756]
[1770033273713,3.61487903,103.24,103.22,4.23888756]
[1770033274513,7.99060749,103.24,103.22,4.23888756]
[1770033274703,4.37572846,103.24,103.2,7.85376659]
[1770033274898,4.37572846,103.24,103.21,4.23888756]
[1770033275125,7.99060749,103.22,103.17,4.23888756]
[1770033275315,4.37572846,103.22,103.19,4.23888756]
[1770033275518,8.27493063,103.23,103.19,4.23888756]
[1770033277216,3.61487903,103.22,103.19,4.23888756]
[1770033277416,8.27493063,103.23,103.19,4.23888756]
[1770033281435,3.61487903,103.25,103.21,4.41181753]
[1770033281610,4.10174668,103.26,103.21,4.41181753]
[1770033281809,4.10174668,103.25,103.22,4.41181753]
[1770033283310,7.71662571,103.25,103.22,4.41181753]
[1770033284939,4.10174668,103.24,103.21,4.41181753]
[1770033285735,7.85878728,103.25,103.21,4.41181753]
[1770033290418,7.85878728,103.25,103.22,4.40618745]
[1770033293936,87.6865874,103.26,103.23,4.40618745]
[1770033294141,0.2,103.33,103.26,4.40618745]
[1770033294142,4.29877154,103.31,103.26,4.40618745]
[1770033294336,4.29877154,103.3,103.27,4.40618745]
[1770033294517,4.29877154,103.31,103.28,4.40618745]
[1770033294717,7.91365057,103.31,103.28,4.40618745]
[1770033295637,4.29877154,103.31,103.28,4.40618745]
[1770033296037,4.29877154,103.32,103.29,4.40618745]
[1770033296337,35.03365057,103.33,103.29,4.40618745]
[1770033297122,4.29877154,103.32,103.29,4.40618745]
[1770033298633,7.91365057,103.32,103.29,4.40618745]
[1770033300339,7.91365057,103.31,103.28,4.40618745]
[1770033300643,7.91365057,103.31,103.27,3.61487903]
[1770033300644,7.91365057,103.3,103.27,4.40618745]
[1770033301435,7.91365057,103.29,103.26,4.40618745]
[1770033301949,3.61487903,103.29,103.26,4.40618745]
[1770033302127,7.91365057,103.3,103.26,4.40618745]
[1770033302329,0.28432314,103.31,103.26,4.40618745]
[1770033302330,7.91365057,103.29,103.26,4.40618745]
[1770033302532,7.91365057,103.28,103.24,4.40618745]
[1770033302736,3.61487903,103.27,103.24,4.40618745]
[1770033303141,7.91365057,103.27,103.24,4.40618745]
[1770033303325,3.61487903,103.26,103.24,4.40618745]
[1770033304424,4.29877154,103.25,103.22,4.40618745]
[1770033304740,3.61487903,103.26,103.22,4.40618745]
[1770033304741,7.91365057,103.26,103.22,4.40618745]
[1770033306032,0.14216157,103.27,103.22,4.40618745]
[1770033306233,3.61487903,103.27,103.24,4.40618745]
[1770033306536,3.61487903,103.26,103.24,4.40618745]
[1770033307343,3.61487903,103.27,103.24,4.40618745]
[1770033307524,7.91365057,103.27,103.24,4.40618745]
[1770033308728,8.00312205,103.26,103.23,4.2232271]
[1770033309238,4.38824302,103.26,103.22,4.2232271]
[1770033309455,8.00312205,103.26,103.22,4.2232271]
[1770033309633,8.00312205,103.25,103.22,4.2232271]
[1770033309828,4.38824302,103.25,103.22,4.2232271]
[1770033310027,8.00312205,103.25,103.22,4.2232271]
[1770033311238,4.38824302,103.25,103.22,4.2232271]
[1770033311441,8.00312205,103.26,103.22,4.2232271]
[1770033311944,8.00312205,103.25,103.22,4.2232271]
[1770033314448,8.00053043,103.25,103.22,4.2232271]
[1770033315448,4.38824302,103.25,103.22,4.2232271]
[1770033316758,8.00053043,103.26,103.22,4.2232271]
[1770033321054,4.38824302,103.25,103.22,4.2232271]
[1770033321650,8.00053043,103.25,103.22,4.2232271]
[1770033322229,3.61228741,103.25,103.22,4.2232271]
[1770033322432,8.00053043,103.24,103.22,4.2232271]
[1770033323652,8.00053043,103.24,103.21,4.2232271]
[1770033323837,0.28432314,103.26,103.2,4.2232271]
[1770033323838,8.00053043,103.23,103.2,4.2232271]
[1770033326767,3.61228741,103.23,103.2,4.2232271]
[1770033327168,8.00053043,103.24,103.21,4.2232271]
[1770033329071,3.61228741,103.23,103.21,4.2232271]
[1770033329253,8.00053043,103.23,103.21,4.2232271]
[1770033330265,8.00053043,103.23,103.19,4.2232271]
[1770033330571,8.00053043,103.22,103.19,4.2232271]
[1770033330974,3.61228741,103.22,103.19,4.2232271]
[1770033332570,8.00053043,103.22,103.19,4.2232271]
[1770033335572,4.38824302,103.22,103.19,4.2232271]
[1770033336159,8.00053043,103.22,103.19,4.2232271]
[1770033337478,4.38824302,103.22,103.19,4.2232271]
[1770033338365,4.38824302,103.22,103.19,7.83551451]
[1770033338778,4.38824302,103.22,103.19,4.2232271]
[1770033341473,3.61228741,103.22,103.19,4.2232271]
[1770033341680,4.43184405,103.21,103.19,4.2232271]
[1770033342277,8.04413146,103.22,103.19,4.2232271]
[1770033342684,4.43184405,103.21,103.19,4.2232271]
[1770033342877,4.43184405,103.22,103.19,4.2232271]
[1770033343081,91.15671324,103.23,103.17,7.71359266]
[1770033343082,4.43184405,103.2,103.17,7.71359266]
[1770033344165,4.43184405,103.2,103.17,4.10130525]
[1770033345578,4.43184405,103.19,103.16,7.81359266]
[1770033345895,4.43184405,103.19,103.16,3.71228741]
[1770033346188,4.43184405,103.19,103.17,4.10130525]
[1770033346390,4.43184405,103.2,103.17,4.10130525]
[1770033346769,4.43184405,103.21,103.18,4.10130525]
[1770033346966,4.43184405,103.21,103.18,7.71359266]
[1770033347168,31.65616719,103.22,103.19,4.10130525]
[1770033347470,4.43184405,103.21,103.18,7.71359266]
[1770033347895,4.43184405,103.21,103.19,4.10130525]
[1770033348773,4.43184405,103.21,103.18,8.06751028]
[1770033349262,4.34679546,103.22,103.19,8.06751028]
[1770033351888,4.34679546,103.23,103.2,4.45522287]
[1770033352466,4.34679546,103.23,103.2,8.06751028]
[1770033353270,30.55228741,103.24,103.21,4.45522287]
[1770033353487,4.34679546,103.23,103.21,4.45522287]
[1770033353990,7.95908287,103.26,103.23,4.45522287]
[1770033354291,7.95908287,103.26,103.22,8.06751028]
[1770033354292,4.34679546,103.25,103.22,8.06751028]
[1770033355296,7.95908287,103.27,103.24,4.45522287]
[1770033355702,4.34679546,103.27,103.24,4.45522287]
[1770033357202,4.34679546,103.26,103.23,8.06751028]
[1770033357894,4.34679546,103.26,103.23,4.45522287]
[1770033359685,7.95908287,103.27,103.23,4.45522287]
[1770033360401,4.34679546,103.25,103.22,4.45522287]
[1770033360707,3.61228741,103.24,103.21,4.45522287]
[1770033360880,4.34679546,103.22,103.19,4.45522287]
[1770033361202,7.95908287,103.22,103.19,4.45522287]
[1770033361383,7.95908287,103.21,103.18,4.45522287]
[1770033361580,4.34679546,103.18,103.16,0.1]
[1770033361885,27.55908287,103.21,103.17,4.45522287]
[1770033362078,7.95908287,103.2,103.17,4.45522287]
[1770033363485,4.34679546,103.2,103.17,4.45522287]
[1770033363685,4.34679546,103.2,103.16,3.71228741]
[1770033363686,26.92,103.22,103.19,4.45522287]
[1770033363893,3.89661055,103.23,103.19,4.45522287]
[1770033364408,34.87908287,103.25,103.21,4.45522287]
[1770033365900,4.34679546,103.27,103.23,4.45522287]
[1770033366102,7.95908287,103.27,103.23,4.45522287]
[1770033366498,4.34679546,103.26,103.23,4.45522287]
[1770033366697,4.34679546,103.26,103.2,4.45522287]
[1770033366698,4.34679546,103.25,103.2,4.45522287]
[1770033366895,3.61228741,103.25,103.21,4.45522287]
[1770033367108,3.83674834,103.26,103.22,4.45522287]
[1770033371208,3.61228741,103.26,103.23,4.21648392]
[1770033371710,7.99666336,103.26,103.23,4.21648392]
[1770033374512,7.99610572,103.26,103.23,4.21648392]
[1770033375904,7.99610572,103.24,103.19,3.61172977]
[1770033376104,4.38437595,103.23,103.2,4.21648392]
[1770033376296,7.99610572,103.23,103.2,4.21648392]
[1770033377319,95.54053155,103.24,103.2,4.21648392]
[1770033378318,4.38437595,103.23,103.2,4.21648392]
[1770033378505,49.5775731,103.24,103.2,4.21648392]
[1770033379020,45.96584333,103.24,103.21,4.40542613]
[1770033381823,49.76482935,103.24,103.21,4.40542613]
[1770033383931,49.76482935,103.24,103.19,3.61172977]
[1770033383932,3.61172977,103.23,103.19,4.40542613]
[1770033384301,3.61172977,103.22,103.18,4.40542613]
[1770033384505,3.79898602,103.21,103.18,4.40542613]
[1770033387125,3.61172977,103.21,103.18,4.40542613]
[1770033391024,3.79898602,103.22,103.18,4.40542613]
[1770033393430,3.61172977,103.2,103.14,4.37527085]
[1770033393632,3.61172977,103.2,103.11,5.46086188]
[1770033393633,7.22345954,103.15,103.11,0.1]
[1770033393817,7.88700062,103.12,103.08,0.1]
[1770033394135,0.2,103.05,103.03,0.1]
[1770033394336,0.2,103.08,103.03,0.1]
[1770033394528,3.61172977,103.06,103.03,0.1]
[1770033394835,11.43410402,103.09,103.03,4.59999999]
[1770033394836,3.61172977,103.05,103.03,4.59999999]
[1770033395020,27.22432314,103.07,103.03,0.1]
[1770033395021,3.61172977,103.04,103.03,0.1]
[1770033395226,3.61172977,103.05,103.03,0.1]
[1770033395614,3.61172977,103.05,103.02,4.59999999]
[1770033395806,27.22432314,103.07,103.02,4.59999999]
[1770033396009,3.61172977,103.05,103.02,4.59999999]
[1770033396416,9.06770556,103.05,103.02,4.59999999]
[1770033396613,27.22432314,103.07,103.03,4.21648392]
[1770033396614,22.23229228,103.04,103.03,4.21648392]
[1770033396817,22.23229228,103.04,103.03,13.28418948]
[1770033397024,22.23229228,103.04,103.03,4.21648392]
[1770033397725,22.23229228,103.04,103.03,13.28418948]
[1770033399423,22.23229228,103.04,103.03,4.21648392]
[1770033400539,26.73229228,103.04,103.02,0.1]
[1770033400722,4.5,103.03,103.0,0.1]
[1770033400917,10.73857,103.02,103.0,0.1]
[1770033401118,10.73857,103.02,102.98,9.38673366]
[1770033401319,19.80627556,103.02,102.98,0.3190281]
[1770033402016,10.73857,103.02,102.98,9.38673366]
[1770033403236,10.73857,103.02,102.98,0.3190281]
[1770033403436,10.73857,103.02,102.99,9.06770556]
[1770033403738,10.73857,103.02,102.98,9.38673366]
[1770033403943,6.23857,103.02,103.0,9.06770556]
[1770033404115,6.23857,103.02,103.01,9.06770556]
[1770033404319,6.23857,103.02,103.0,9.06770556]
[1770033404520,6.23857,103.02,103.01,9.06770556]
[1770033404727,4.5,103.05,103.01,9.06770556]
[1770033404947,9.06770556,103.07,103.03,9.06770556]
[1770033404948,6.26513097,103.04,103.03,9.06770556]
[1770033405245,6.1696926,103.04,103.03,9.06770556]
[1770033409030,6.12431757,103.06,103.03,9.06770556]
[1770033410145,6.12431757,103.06,103.04,9.06770556]
[1770033410721,10.62431757,103.06,103.04,9.06770556]
[1770033411639,6.12431757,103.06,103.05,9.06770556]
[1770033412356,10.59680346,103.09,103.05,9.06770556]
[1770033412648,10.59680346,103.09,103.06,9.06770556]
[1770033413246,10.59680346,103.09,103.05,9.06770556]
[1770033413748,10.59680346,103.09,103.06,9.06770556]
[1770033414555,10.59680346,103.09,103.04,0.28432314]
[1770033414744,10.59680346,103.09,103.06,9.06770556]
[1770033420138,6.09680346,103.09,103.08,9.06770556]
[1770033420329,4.5,103.12,103.08,3.62051077]
[1770033422554,4.5,103.12,103.09,9.05126463]
[1770033422929,4.5,103.12,103.06,0.14216157]
[1770033422930,4.5,103.12,103.1,9.05126463]
[1770033423737,4.5,103.12,103.09,9.05126463]
[1770033424656,4.5,103.12,103.06,9.84506212]
[1770033424845,6.0771278,103.14,103.11,9.05126463]
[1770033425063,10.5771278,103.14,103.12,9.05126463]
[1770033426353,10.5771278,103.14,103.09,0.14216157]
[1770033426656,4.5,103.13,103.1,9.05126463]
[1770033427157,4.5,103.13,103.09,9.33558777]
[1770033427539,4.5,103.13,103.09,9.05126463]
[1770033427748,4.5,103.13,103.08,9.05126463]
[1770033427749,4.5,103.12,103.08,9.05126463]
[1770033427954,4.5,103.11,103.07,9.05126463]
[1770033429752,4.5,103.11,103.08,9.05126463]
[1770033436447,4.5,103.11,103.08,9.05272139]
[1770033441169,4.5,103.11,103.06,0.28432314]
[1770033441371,4.5,103.11,103.07,9.05272139]
[1770033442467,4.5,103.11,103.07,3.62153339]
[1770033444595,4.5,103.11,103.08,3.62153339]
[1770033448670,4.5,103.11,103.07,3.62153339]
[1770033450960,4.5,103.11,103.08,3.62153339]
[1770033451161,4.5,103.12,103.09,3.62153339]
[1770033451361,10.5771278,103.14,103.11,3.62153339]
[1770033451563,4.5,103.13,103.12,3.62153339]
[1770033451763,4.5,103.13,103.08,0.28432314]
[1770033452068,4.5,103.13,103.11,3.62153339]
[1770033453085,4.5,103.12,103.09,3.62153339]
[1770033453272,4.5,103.12,103.07,88.76]
[1770033453273,4.5,103.12,103.08,3.62153339]
[1770033453461,4.5,103.11,103.08,3.62153339]
[1770033454581,4.5,103.11,103.07,3.62153339]
[1770033454983,4.5,103.11,103.05,3.62153339]
[1770033454984,4.5,103.11,103.08,3.62153339]
[1770033458882,4.5,103.11,103.05,0.28432314]
[1770033459070,4.5,103.11,103.07,3.62153339]
[1770033459267,4.5,103.11,103.08,3.62153339]
[1770033462190,4.5,103.11,103.07,3.62153339]
[1770033462993,4.5,103.08,103.05,3.62153339]
[1770033463375,4.5,103.08,103.04,3.62153339]
[1770033463575,4.5,103.07,103.04,3.62153339]
[1770033464486,4.5,103.07,103.05,3.62153339]
[1770033465578,4.5,103.07,103.04,3.62153339]
[1770033465778,4.5,103.07,103.05,3.62153339]
[1770033466393,4.5,103.07,103.04,3.62153339]
[1770033466587,4.5,103.07,103.05,3.62153339]
[1770033467105,4.5,103.07,103.03,109.16986079]
[1770033467106,0.28432314,103.11,103.06,3.62153339]
[1770033467473,3.62153339,103.1,103.06,3.62153339]
[1770033468290,3.62153339,103.1,103.05,3.62153339]
[1770033469299,4.5,103.09,103.05,3.62153339]
[1770033472386,4.5,103.08,103.03,109.16986079]
[1770033472785,4.5,103.08,103.04,3.62153339]
[1770033473497,4.5,103.08,103.05,3.62153339]
[1770033473801,4.5,103.08,103.04,3.62153339]
[1770033474188,4.5,103.08,103.03,109.16986079]
[1770033474389,4.5,103.05,103.03,109.16986079]
[1770033474711,4.5,103.04,103.03,109.16986079]
[1770033475215,3.90585653,103.08,103.03,112.79139418]
[1770033475584,3.62153339,103.07,103.03,112.79139418]
[1770033475810,3.90585653,103.08,103.03,113.25856815]
[1770033476389,3.90585653,103.08,103.03,109.16986079]
[1770033476390,3.62153339,103.06,103.03,109.16986079]
[1770033477105,4.26641301,103.05,103.03,109.16986079]
[1770033480095,4.26641301,103.04,103.03,109.16986079]
[1770033480406,4.26641301,103.04,103.0,4.08870736]
[1770033480607,4.26641301,103.04,103.01,0.46717397]
[1770033482414,4.26641301,103.04,103.0,4.08870736]
[1770033483008,4.26641301,103.04,103.01,0.46717397]
[1770033483207,4.26641301,103.04,103.0,4.08870736]
[1770033483412,4.26641301,103.03,103.0,0.46717397]
[1770033483992,4.26641301,103.03,103.0,4.08870736]
[1770033484216,4.26641301,103.05,103.01,4.08870736]
[1770033484511,4.26641301,103.06,103.02,4.08870736]
[1770033490717,4.46754033,103.05,103.02,4.08870736]
[1770033492307,4.46754033,103.05,103.02,0.46717397]
[1770033492510,4.46754033,103.05,103.01,3.62153339]
[1770033492812,108.27527085,103.09,102.95,93.20909973]
[1770033492813,7.24306678,103.02,102.95,93.20909973]
[1770033493007,9.34227085,102.94,102.83,52.42422019]
[1770033493195,18.59959399,102.93,102.83,5.06828611]
[1770033493410,3.62153339,102.86,102.83,5.06828611]
[1770033493718,3.62153339,102.85,102.79,4.49999999]
[1770033493926,9.49942183,102.87,102.82,4.49999999]
[1770033494122,9.49942183,102.87,102.8,9.72731508]
[1770033494123,0.28432314,102.86,102.8,9.72731508]
[1770033494412,0.28432314,102.86,102.8,9.10033131]
[1770033494714,31.48,102.9,102.85,9.10033131]
[1770033495016,4.5,102.9,102.86,9.10033131]
[1770033495204,4.5,102.9,102.85,9.10033131]
[1770033495398,9.10033131,102.89,102.83,9.10033131]
[1770033495599,13.60033131,102.87,102.81,9.10033131]
[1770033495812,4.5,102.86,102.81,9.10033131]
[1770033496001,4.5,102.86,102.79,14.00377338]
[1770033496002,4.5,102.87,102.83,9.10033131]
[1770033496211,4.5,102.87,102.82,9.10033131]
[1770033496410,13.59716485,102.87,102.81,9.09716485]
[1770033496611,4.5,102.87,102.82,9.09716485]
[1770033498818,13.59716485,102.87,102.82,9.09716485]
[1770033499122,4.5,102.86,102.82,9.09716485]
[1770033499502,4.5,102.87,102.83,9.09716485]
[1770033499708,2.15817105,102.87,102.83,11.4389938]
[1770033499921,89.42903136,102.87,102.78,2.34182895]
[1770033500124,89.42903136,102.87,102.83,11.4389938]
[1770033500432,89.42903136,102.87,102.83,2.34182895]
[1770033500927,89.42903136,102.87,102.83,11.4389938]
[1770033501325,116.42903136,102.87,102.83,2.34182895]
[1770033501528,95.64391833,102.86,102.83,11.4389938]
[1770033501830,95.64391833,102.86,102.79,14.00329453]
[1770033501831,4.46754033,102.84,102.8,9.09716485]
[1770033502014,4.46754033,102.84,102.8,11.4389938]
[1770033502214,96.24590083,102.84,102.8,11.4389938]
[1770033503624,96.24590083,102.84,102.8,9.09716485]
[1770033503932,96.24590083,102.84,102.81,9.09716485]
[1770033504531,91.7783605,102.84,102.82,9.09716485]
[1770033505417,91.7783605,102.84,102.81,9.09716485]
[1770033505913,91.7783605,102.84,102.77,34.19790482]
[1770033505914,91.7783605,102.84,102.77,0.14216157]
[1770033506129,91.7783605,102.84,102.74,72.76240543]
[1770033506130,27.0,102.83,102.74,72.76240543]
[1770033506433,96.2783605,102.84,102.8,9.09716485]
[1770033506839,91.7783605,102.84,102.77,10.01451926]
[1770033507141,4.5,102.82,102.76,0.14216157]
[1770033507336,4.5,102.82,102.78,9.09716485]
[1770033507517,96.2783605,102.84,102.81,9.09716485]
[1770033507720,96.2783605,102.84,102.79,9.09716485]
[1770033508015,4.5,102.83,102.78,9.09716485]
[1770033508213,4.5,102.82,102.77,0.14216157]
[1770033508416,4.5,102.82,102.78,9.09716485]
[1770033509236,96.2783605,102.84,102.78,0.28432314]
[1770033509545,96.2783605,102.84,102.8,9.09716485]
[1770033510037,96.2783605,102.84,102.78,5.64518502]
[1770033510244,56.2783605,102.84,102.81,9.09716485]
[1770033510439,51.7783605,102.84,102.81,9.09716485]
[1770033510742,4.5,102.83,102.77,4.27527085]
[1770033510940,51.7783605,102.84,102.81,9.09716485]
[1770033511543,56.2783605,102.84,102.81,9.09716485]
[1770033511925,51.7783605,102.84,102.81,9.09716485]
[1770033512748,51.7783605,102.84,102.82,9.09716485]
[1770033512916,51.7783605,102.84,102.81,9.09716485]
[1770033514631,4.5,102.83,102.8,0.28432314]
[1770033514824,51.7783605,102.84,102.82,9.09716485]
[1770033515025,51.7783605,102.84,102.83,9.09716485]
[1770033515824,4.5,102.86,102.83,9.09716485]
[1770033516545,4.5,102.86,102.83,3.63830145]
[1770033516940,6.09211388,102.89,102.86,4.12067395]
[1770033517120,306.5,103.43,102.88,3.63830145]
[1770033517121,17.37830145,102.94,102.88,3.63830145]
[1770033517324,17.37830145,102.94,102.89,3.63830145]
[1770033517746,3.63830145,102.94,102.88,4.12067395]
[1770033517948,27.02,102.94,102.9,3.63830145]
[1770033518246,3.63830145,102.96,102.91,3.63830145]
[1770033518452,27.02,102.95,102.91,9.08161788]
[1770033518666,36.10161788,102.95,102.88,0.28432314]
[1770033518830,9.08161788,102.93,102.88,13.22271362]
[1770033519153,4.3223253,102.94,102.9,9.08161788]
[1770033519456,4.3223253,102.94,102.91,9.08161788]
[1770033519827,4.3223253,102.94,102.9,9.08161788]
[1770033520147,4.3223253,102.93,102.9,9.08161788]
[1770033522256,4.3223253,102.9,102.84,4.14109574]
[1770033522453,4.3223253,102.9,102.87,9.08161788]
[1770033522753,4.3223253,102.92,102.89,9.08161788]
[1770033525152,4.3223253,102.92,102.88,9.08161788]
[1770033525663,4.3223253,102.92,102.84,4.27527085]
[1770033525951,4.3223253,102.92,102.88,4.14109574]
[1770033526150,4.3223253,102.92,102.88,13.22271362]
[1770033526358,4.3223253,102.92,102.88,9.08161788]
[1770033526658,4.3223253,102.92,102.87,4.14109574]
[1770033526961,4.3223253,102.92,102.87,13.22271362]
[1770033527348,4.3223253,102.91,102.87,9.08161788]
[1770033527856,4.3223253,102.9,102.86,9.08161788]
[1770033528055,4.3223253,102.9,102.87,9.08161788]
[1770033528442,4.3223253,102.9,102.86,4.14109574]
[1770033528643,4.3223253,102.9,102.86,13.22271362]
[1770033529148,4.20150149,102.92,102.88,9.08161788]
[1770033530436,4.20150149,102.91,102.84,4.10634941]
[1770033530636,4.20150149,102.91,102.83,4.27527085]
[1770033530637,4.20150149,102.91,102.87,9.08161788]
[1770033531054,4.20150149,102.91,102.86,13.18796729]
[1770033531055,4.20150149,102.9,102.86,13.18796729]
[1770033531257,4.20150149,102.89,102.85,13.18796729]
[1770033531463,4.20150149,102.89,102.85,4.10634941]
[1770033531661,4.20150149,102.89,102.85,13.18796729]
[1770033532455,4.20150149,102.89,102.86,9.08161788]
[1770033532866,4.20150149,102.9,102.87,9.08161788]
[1770033534370,4.20150149,102.89,102.82,4.10634941]
[1770033534561,4.20150149,102.89,102.84,13.18796729]
[1770033534864,4.20150149,102.89,102.86,4.10634941]
[1770033535160,4.20150149,102.89,102.85,13.18796729]
[1770033535762,4.20150149,102.89,102.86,9.08161788]
[1770033536860,4.20150149,102.87,102.83,0.14216157]
[1770033537161,4.20150149,102.89,102.86,9.08161788]
[1770033538259,4.20150149,102.89,102.85,9.08161788]
[1770033538441,4.20150149,102.89,102.86,9.08161788]
[1770033538837,4.20150149,102.89,102.85,9.08161788]
[1770033539038,4.20150149,102.89,102.84,13.18796729]
[1770033539255,4.20150149,102.89,102.82,4.10634941]
[1770033539459,4.20150149,102.87,102.83,9.08161788]
[1770033540368,4.20150149,102.87,102.82,7.74499207]
[1770033540575,4.20150149,102.87,102.83,3.63864266]
[1770033540861,4.20150149,102.87,102.84,3.63864266]
[1770033541865,4.20150149,102.89,102.86,3.63864266]
[1770033542375,4.20150149,102.89,102.86,13.19656565]
[1770033542665,4.20150149,102.89,102.87,9.09021624]
[1770033542870,4.20150149,102.92,102.88,13.19656565]
[1770033543083,4.20150149,102.92,102.88,4.10634941]
[1770033543268,4.20150149,102.92,102.88,13.19656565]
[1770033543564,4.20150149,102.92,102.88,9.09021624]
[1770033545868,4.20150149,102.91,102.88,9.09021624]
[1770033549880,4.20150149,102.91,102.89,9.09021624]
[1770033550364,4.20150149,102.91,102.88,13.3092931]
[1770033551058,4.20150149,102.91,102.87,13.3092931]
[1770033551567,4.20150149,102.91,102.88,9.09021624]
[1770033551771,4.20150149,102.91,102.87,4.21907686]
[1770033551952,4.20150149,102.91,102.88,9.09021624]
[1770033552672,4.1230251,102.92,102.89,9.09021624]
[1770033553266,4.1230251,102.92,102.88,13.3092931]
[1770033555469,4.1230251,102.92,102.88,9.09021624]
[1770033555675,4.1230251,102.92,102.87,4.21907686]
[1770033555970,4.1230251,102.92,102.87,13.3092931]
[1770033556362,4.1230251,102.92,102.87,13.30692891]
[1770033556563,4.1230251,102.92,102.88,4.21907686]
[1770033557477,4.1230251,102.92,102.86,4.21907686]
[1770033557669,4.1230251,102.92,102.87,13.30692891]
[1770033559870,4.1230251,102.92,102.88,13.30692891]
[1770033560775,4.1230251,102.92,102.88,4.21907686]
[1770033561377,4.1230251,102.92,102.87,9.08785205]
[1770033561579,4.1230251,102.92,102.87,13.30692891]
[1770033562379,4.1230251,102.92,102.88,13.30692891]
[1770033562561,4.1230251,102.92,102.89,4.21907686]
[1770033563570,4.1230251,102.92,102.88,13.30692891]
[1770033564382,4.1230251,102.92,102.88,7.85352861]
[1770033565068,4.1230251,102.93,102.9,4.21907686]
[1770033565474,4.1230251,102.96,102.92,7.85352861]
[1770033565855,4.1230251,102.95,102.9,7.85352861]
[1770033566158,4.1230251,102.93,102.89,3.63445175]
[1770033566557,4.1230251,102.93,102.89,7.85352861]
[1770033566777,4.1230251,102.92,102.87,7.85352861]
[1770033567261,4.1230251,102.9,102.85,4.21907686]
[1770033567477,4.1230251,102.89,102.85,7.85352861]
[1770033567885,4.1230251,102.89,102.85,4.21907686]
[1770033568183,4.1230251,102.89,102.85,7.85352861]
[1770033568478,4.1230251,102.89,102.85,3.63445175]
[1770033568672,4.1230251,102.88,102.84,7.85352861]
[1770033569385,4.1230251,102.88,102.84,4.21907686]
[1770033570185,4.1230251,102.88,102.84,7.85352861]
[1770033570483,4.1230251,102.9,102.85,7.85352861]
[1770033571965,4.1230251,102.9,102.86,7.85352861]
[1770033572166,4.1230251,102.9,102.83,9.72459474]
[1770033572167,4.1230251,102.88,102.83,4.21907686]
[1770033572374,4.1230251,102.88,102.83,7.85352861]
[1770033572573,4.1230251,102.88,102.84,4.21907686]
[1770033573283,4.1230251,102.88,102.84,3.63445175]
[1770033573485,4.1230251,102.87,102.83,3.63445175]
[1770033574189,4.1230251,102.87,102.82,7.85352861]
[1770033574486,4.1230251,102.87,102.82,13.31608798]
[1770033574687,4.1230251,102.86,102.82,13.31608798]
[1770033575574,4.1230251,102.88,102.84,4.21907686]
[1770033575768,4.1230251,102.86,102.82,4.21907686]
[1770033575988,4.1230251,102.86,102.83,4.21907686]
[1770033576191,4.1230251,102.86,102.83,13.31608798]
[1770033577810,13.22003622,102.9,102.85,4.21907686]
[1770033578014,4.43177093,102.89,102.85,4.21907686]
[1770033578197,4.43177093,102.89,102.85,13.31608798]
[1770033578510,4.43177093,102.9,102.86,13.35547114]
[1770033579594,9.09701112,102.92,102.87,4.25846002]
[1770033579595,4.43177093,102.91,102.87,4.25846002]
[1770033579796,4.43177093,102.91,102.87,13.35547114]
[1770033580417,4.43177093,102.91,102.88,13.35547114]
[1770033580618,4.43177093,102.93,102.88,13.35547114]
[1770033581509,4.43177093,102.93,102.88,9.09701112]
[1770033581811,4.43177093,102.93,102.84,24.30901607]
[1770033581812,4.43177093,102.93,102.9,13.35547114]
[1770033582119,4.43177093,102.93,102.9,4.25846002]
[1770033584799,4.43177093,102.93,102.89,4.25846002]
[1770033585817,4.43177093,102.93,102.89,13.35547114]
[1770033586409,4.43177093,102.93,102.87,4.27527085]
[1770033586613,4.38745322,102.91,102.87,13.35547114]
[1770033586810,4.38745322,102.93,102.89,4.25846002]
[1770033587999,13.48446434,102.93,102.89,4.25846002]
[1770033588405,4.38745322,102.93,102.89,4.25846002]
[1770033589025,13.48446434,102.93,102.89,4.25846002]
[1770033589211,4.26577135,102.92,102.89,4.25846002]
[1770033589613,4.26577135,102.92,102.88,4.14311867]
[1770033592117,9.09701112,102.92,102.86,4.14311867]
[1770033592319,4.26577135,102.91,102.86,13.24012979]
[1770033593117,4.26577135,102.91,102.87,4.14311867]
[1770033593423,4.26577135,102.91,102.88,4.14311867]
[1770033593922,4.26577135,102.92,102.88,4.14311867]
[1770033594110,4.26577135,102.92,102.89,4.14311867]
[1770033594310,4.26577135,102.93,102.89,4.14311867]
[1770033595623,4.26577135,102.93,102.89,7.77761438]
[1770033596830,4.26577135,102.94,102.9,4.14311867]
[1770033599335,3.63449571,102.94,102.9,4.14311867]